[Event "Uruguayan Championship 2022"]
[Site "Montevideo"]
[Date "2022.04.13"]
[Round "6.6"]
[White "Palacio, Enzo"]
[Black "Rodi, Luis Ernesto"]
[Result "0-1"]
[ECO "B15"]
[WhiteElo "1896"]
[BlackElo "2347"]
[Annotator "TA"]
[PlyCount "200"]
[EventDate "2022.04.08"]
[EventType "tourn"]
[EventCountry "URU"]
[SourceTitle "playchess.com"]
[Source "ChessBase"]
[SourceQuality "1"]
[TimeControl "40/5400+30:1800+30"]

{[%evp 14,200,37,35,35,26,41,29,33,23,36,22,38,17,35,18,37,20,62,65,64,68,70,67,65,50,53,63,56,42,39,30,44,34,38,0,0,0,0,-17,-17,-83,-45,-95,-14,-89,-24,-63,-24,-24,-17,-17,-17,-17,-17,-17,-7,-22,-16,-18,-5,-18,-6,-24,-24,-24,-10,-17,-17,-17,-17,-17,-16,-38,0,0,0,0,0,-10,0,0,0,0,0,-10,-9,-10,-24,-31,-17,-17,-17,-17,-17,-18,-27,-47,-47,-47,-47,-47,-48,-48,-47,-47,-25,-22,-18,-18,63,-2,-2,-2,0,-49,-16,-16,-18,-50,-65,-65,-57,-65,-2,-65,-9,-65,0,0,0,0,0,-70,-67,-66,-72,-383,-153,-153,-153,-153,-153,-123,-116,-318,-302,-275,-286,-557,-536,-548,-547,-539,-518,-448,-432,-369,-363,-446,-443,-548,-451,-510,-468,-1478,-1500,-1335,-1266,-29978,-29979,-29979,-29980,-29980,-29981,-29981,-29981,-7100,-6508,-29987,-29988,-29988,-29985,-29985,-29986,-29990,-29991,-29991,-29992]} 1. e4 {[%emt 0:00:03]} c6 {[%emt 0:00:27]} 2. d4 {[%emt 0:00:06]} d5 {[%emt 0:00:06]} 3. Nc3 {[%emt 0:00:04]} dxe4 {[%emt 0:00:07]} 4. Nxe4 {[%emt 0:00:05]} Nf6 {[%emt 0:00:07]} 5. Nxf6+ {[%emt 0:00:05]} exf6 {[%emt 0:00:05]} 6. c3 {[%emt 0:00:14]} Bd6 {[%emt 0:00:06]} 7. Bd3 {[%emt 0:00:06]} O-O {[%emt 0:00:07]} 8. Qc2 {[%emt 0:00:40]} Re8+ {[%emt 0:00:07] B15: Caro-Kann: 3 Nc3: 3...g6 and 3...dxe4 4 Nxe4 Nf6 5 Nxf6+ exf6.} 9. Ne2 {[%emt 0:00:08]} h5 {[%emt 0:00:05]} 10. O-O {[%emt 0:00:23]} h4 {[%emt 0:00:07] White has an edge.} 11. h3 {[%emt 0:20:28]} Nd7 {[%emt 0:00:19]} 12. Be3 {[%emt 0:10:02]} Nf8 {[%emt 0:00:13]} 13. Qd2 {[%emt 0:07:37]} Ne6 {[%emt 0:05:40] [#]} 14. f4 $146 {[%emt 0:08:40]} ({Predecessor:} 14. c4 Bc7 15. Nf4 Ng5 16. Rad1 Bd7 17. d5 Qc8 18. dxc6 Bxc6 19. Nd5 Nxh3+ 20. gxh3 Qxh3 21. Rfe1 Bh2+ 22. Kh1 Bg3+ 23. Kg1 Bh2+ 24. Kh1 Bg3+ 25. Kg1 Bh2+ {½-½ (25) Kopylov,D (2303)-Schulze,T (2280) Magdeburg 2021}) 14... Qe7 {[%emt 0:24:21][%cal Oe6g5]} 15. Rf3 {[%emt 0:01:58]} c5 {[%emt 0:01:37]} 16. d5 {[%emt 0:06:14]} Nc7 {[%emt 0:00:45]} 17. c4 {[%emt 0:01:33]} f5 {[%emt 0:00:14]} 18. Bf2 {[%emt 0:05:58]} Qf6 {[%emt 0:00:22]} 19. Rb1 {[%emt 0:03:39][%cal Ob2b4]} Bd7 {[%emt 0:01:25]} 20. Qe1 {[%emt 0:03:43]} Be7 {[%emt 0:06:54]} 21. Re3 {[%emt 0:03:09]} b6 {[%emt 0:02:00]} 22. Kh1 {[%emt 0:04:32]} Qh6 {[%emt 0:00:46]} 23. Qd2 {[%emt 0:04:30]} Bd6 {[%emt 0:01:06]} 24. Rf1 {[%emt 0:03:40]} Rxe3 {[%emt 0:00:49]} 25. Bxe3 {[%emt 0:01:09]} Ne8 $1 {[%emt 0:00:36][%cal Bc7e8,Be8f6,Bf6h5,Bh5g3][%mdl 32]} 26. Ng1 {[%emt 0:01:43]} Nf6 {[%emt 0:01:52]} 27. Nf3 {[%emt 0:03:14]} (27. Ra1 $11) 27... Nh5 $1 $17 {[%emt 0:00:38]} (27... Ne4 $6 28. Bxe4 fxe4 29. Ne5 $11) 28. Rf2 {[%emt 0:06:55]} (28. Re1 $15) 28... f6 {[%emt 0:05:20]} (28... Bxf4 $17 29. Bxf4 Qxf4) 29. Ng1 {[%emt 0:01:03]} (29. Nh2 $11) 29... Ng3+ {[%emt 0:01:15]} 30. Kh2 {[%emt 0:00:03]} Re8 {[%emt 0:00:37][%cal Og7g5]} (30... g5 $5) 31. Ne2 {[%emt 0:00:58]} Qg6 {[%emt 0:01:20]} 32. Rf3 {[%emt 0:00:49][%cal Re2g3]} Ne4 {[%emt 0:00:45]} 33. Bxe4 {[%emt 0:02:06]} fxe4 {[%emt 0:02:29]} 34. Rf1 {[%emt 0:00:20]} f5 {[%emt 0:00:29]} (34... Rd8 {is more complex.} 35. Nc3 f5 36. a4 Be7) 35. Kh1 {[%emt 0:00:51]} Qh5 {[%emt 0:01:12]} 36. b3 {[%emt 0:00:39]} Kh7 {[%emt 0:00:25]} 37. Qe1 {[%emt 0:00:20]} Be7 {[%emt 0:00:17]} 38. Qd2 {[%emt 0:00:56]} Qh6 {[%emt 0:00:44]} 39. a4 {[%emt 0:00:22]} a5 {[%emt 0:01:43]} 40. Rf2 {[%emt 0:00:23]} Rg8 {[%emt 0:00:18]} 41. Rf1 {[%emt 0:30:52]} Be8 {[%emt 0:30:36]} 42. Qc2 {[%emt 0:00:00]} Bf6 {[%emt 0:00:00]} 43. Rf2 {[%emt 0:00:00]} g6 {[%emt 0:00:00]} 44. Qd2 {[%emt 0:00:00]} Qg7 {[%emt 0:00:00]} 45. Rf1 {[%emt 0:00:00]} Bd7 {[%emt 0:00:00]} 46. Rf2 {[%emt 0:00:00]} Qe7 {[%emt 0:00:00]} 47. Rf1 {[%emt 0:00:00]} Re8 {[%emt 0:00:00]} 48. Rf2 {[%emt 0:00:00]} Qd6 {[%emt 0:00:00]} 49. Kg1 {[%emt 0:00:00]} Kg7 {[%emt 0:00:00][%cal Bh7g7,Bg7f7,Bf7e8,Be8d8,Bd8c8,Bc8b7][%mdl 32]} 50. Rf1 {[%emt 0:00:00]} Kf7 {[%emt 0:00:00]} 51. Kf2 {[%emt 0:00:00]} Rg8 {[%emt 0:00:00]} 52. Kg1 {[%emt 0:00:00]} Ke8 {[%emt 0:00:00]} 53. Kh1 {[%emt 0:00:00]} Kd8 {[%emt 0:00:00]} 54. Nc3 {[%emt 0:00:00]} Kc8 {[%emt 0:00:00]} 55. Ne2 {[%emt 0:00:00]} Bd8 {[%emt 0:00:00]} 56. Kg1 {[%emt 0:00:00]} Kb7 {[%emt 0:00:00]} 57. Rf2 {[%emt 0:00:00]} Bc7 {[%emt 0:00:00][%cal Og6g5]} 58. Kf1 {[%emt 0:00:00]} Rf8 {[%emt 0:00:00]} 59. Ke1 {[%emt 0:00:00]} Qf6 {[%emt 0:00:00]} 60. Qc3 {[%emt 0:00:00]} Qxc3+ {[%emt 0:00:00]} 61. Nxc3 {[%emt 0:00:00]} g5 {[%emt 0:00:00]} (61... Rg8 $11) 62. Ne2 {[%emt 0:00:00]} ({White should play} 62. fxg5 $14 Bg3 63. Bf4 Bxf2+ 64. Kxf2) 62... g4 $11 {[%emt 0:00:00]} 63. Rf1 {[%emt 0:00:00]} Bd8 {[%emt 0:00:00]} 64. Kf2 {[%emt 0:00:27]} (64. Rh1 $11 {deserves consideration.}) 64... Rg8 {[%emt 0:00:00]} 65. Rh1 {[%emt 0:02:16]} Bf6 {[%emt 0:00:00]} 66. Kf1 {[%emt 0:01:58]} Be8 {[%emt 0:00:00]} 67. Bf2 {[%emt 0:04:04]} Rh8 {[%emt 0:00:00]} (67... g3 $5 {[%cal Rg3f2]} 68. Be3 b5 69. axb5 Bh5 $17) 68. Ke1 {[%emt 0:00:38]} Bh5 {[%emt 0:00:00]} (68... g3 $15 69. Be3 Bh5) 69. Kd2 {[%emt 0:01:22]} (69. hxg4 $11 Bxg4 70. Kd2) 69... Kc7 {[%emt 0:00:00]} ({Better is} 69... g3 $15 70. Be3 Rd8) 70. Ke3 {[%emt 0:00:18]} (70. hxg4 $11 Bxg4 71. Be1) 70... Bg6 {[%emt 0:00:00]} (70... g3 $15 71. Be1 Bxe2 72. Kxe2 Kd6) 71. Be1 {[%emt 0:00:27]} ({But not} 71. hxg4 fxg4 72. Be1 h3 73. gxh3 Rxh3+ 74. Rxh3 gxh3 $17) 71... Rh7 {[%emt 0:00:33]} 72. Rh2 {[%emt 0:00:55]} Bh5 {[%emt 0:00:28]} (72... g3 $5 73. Rh1 Bh8 $11) 73. Rh1 {[%emt 0:00:11]} (73. Bc3 $11 Bxc3 74. Nxc3) 73... gxh3 $15 {[%emt 0:00:23]} 74. Rxh3 {[%emt 0:01:42]} Rg7 {[%emt 0:00:19]} 75. g3 $2 {[%emt 0:01:29][%mdl 8192]} (75. Rh2 $17 {nothing else works.}) 75... Bg4 $2 {[%emt 0:00:55]} (75... Kd7 $19 {And now ...Bg4 would win.} 76. Rh2 Bxe2 77. Kxe2 hxg3) 76. Rh2 $17 {[%emt 0:01:32]} Bxe2 {[%emt 0:03:16]} 77. Kxe2 {[%emt 0:00:05]} hxg3 {[%emt 0:00:05][%mdl 4096] Endgame KRB-KRB} 78. Rg2 {[%emt 0:00:02] [#]} Bh4 $1 {[%emt 0:00:13] &Nero is more active.} 79. Kf1 $2 {[%emt 0:01:35]} (79. Bc3 $17 Rg4 80. Be1) 79... Rg4 $19 {[%emt 0:00:14]} 80. Bd2 {[%emt 0:00:27]} Bf6 {[%emt 0:00:08]} 81. Ke2 $2 {[%emt 0:00:39]} (81. Be1 Rxf4+ 82. Ke2) 81... Kd7 {[%emt 0:00:14]} 82. Be1 {[%emt 0:00:24]} Bh4 {[%emt 0:00:21]} 83. Ke3 {[%emt 0:00:19]} Ke7 {[%emt 0:00:39]} 84. Bc3 {[%emt 0:00:07]} Rg6 {[%emt 0:02:15]} 85. Ke2 {[%emt 0:00:47]} Kf7 {[%emt 0:00:41]} 86. Kf1 {[%emt 0:00:21] [#]} Rg4 $1 {[%emt 0:01:29]} 87. Be5 {[%emt 0:00:38]} Bf6 {[%emt 0:01:57] aiming for ...Bxe5.} 88. Bc7 {[%emt 0:00:43]} Bd4 {[%emt 0:00:12]} 89. d6 {[%emt 0:00:36]} (89. Ke2 $142 Bf2 90. Rxf2 (90. Bxb6 $2 Rxf4 91. Bxa5 Rf3 $19)) 89... Ke6 {[%emt 0:00:11]} 90. Ke2 {[%emt 0:00:30]} Bf2 {[%emt 0:00:54]} 91. Bb8 {[%emt 0:00:31]} Kd7 {[%emt 0:00:09]} 92. Bc7 {[%emt 0:00:35]} Rxf4 {[%emt 0:00:21]} 93. Bxb6 {[%emt 0:00:20]} Rf3 {[%emt 0:00:13]} 94. Bxa5 {[%emt 0:00:25]} Rxb3 {[%emt 0:00:07]} 95. Bd2 {[%emt 0:00:41]} e3 {[%emt 0:01:17][%cal Be4e3,Be3e2][%mdl 32]} 96. Be1 {[%emt 0:00:34]} Bxe1 {[%emt 0:01:20] Black mates.} 97. Kxe1 {[%emt 0:00:07]} Rb1+ {[%emt 0:00:04]} 98. Ke2 {[%emt 0:00:20]} Rb2+ {[%emt 0:00:06]} 99. Kf1 {[%emt 0:00:04]} Rxg2 {[%emt 0:00:07]} 100. Kxg2 {[%emt 0:00:02]} e2 {[%emt 0:00:07] Weighted Error Value: White=0.12 (very precise) /Black=0.08 (flawless)} 0-1

[Event "Uruguayan Championship 2022"]
[Site "Montevideo"]
[Date "2022.04.14"]
[Round "7.1"]
[White "Rodi, Luis Ernesto"]
[Black "Diaz Hollemaert, Nahuel"]
[Result "1-0"]
[ECO "B23"]
[WhiteElo "2347"]
[BlackElo "2439"]
[Annotator "TA"]
[PlyCount "105"]
[EventDate "2022.04.08"]
[EventType "tourn"]
[EventCountry "URU"]
[SourceTitle "playchess.com"]
[Source "ChessBase"]
[SourceQuality "1"]
[TimeControl "40/5400+30:1800+30"]

{[%evp 15,105,-3,89,78,123,125,190,172,302,296,556,82,102,39,223,206,187,143,166,158,394,384,368,358,405,396,484,464,457,459,481,479,432,480,473,466,462,453,466,454,442,419,433,341,377,352,349,327,421,340,428,412,429,409,427,413,414,413,413,414,469,411,447,449,462,450,537,441,409,408,587,593,708,489,477,488,483,478,461,464,530,517,547,522,653,632,628,606,623,632,913,769]} 1. e4 {[%emt 0:00:03]} c5 {[%emt 0:03:32]} 2. Nc3 {[%emt 0:00:27]} a6 {[%emt 0:00:43]} 3. g3 {[%emt 0:00:24]} b5 {[%emt 0:04:45]} 4. Bg2 {[%emt 0:00:27]} Bb7 {[%emt 0:00:01]} 5. Nge2 {[%emt 0:00:10]} Nf6 {[%emt 0:03:36]} 6. d4 {[%emt 0:01:34]} cxd4 {[%emt 0:01:51]} 7. Nxd4 {[%emt 0:00:08]} e6 {[%emt 0:00:18]} 8. O-O {[%emt 0:00:08]} d6 {[%emt 0:18:01]} (8... b4 $11 {keeps the balance.} 9. e5 Bxg2 10. Kxg2 bxc3 11. exf6 Qxf6) 9. Re1 $16 {[%emt 0:00:17] Hoping for e5. B91: Sicilian Najdorf: 6 g3.} Qc8 {[%emt 0:04:35]} 10. a4 {[%emt 0:00:34][%cal Oc3d5]} bxa4 {[%emt 0:04:38] [#]} (10... Be7 $16) 11. Rxa4 $146 {[%emt 0:10:05] White is clearly better.} ({Predecessor:} 11. Nxa4 Nbd7 12. Nb3 Rb8 13. Na5 Ba8 14. b3 Rb5 15. Nc4 Bxe4 16. Bxe4 Nxe4 17. Rxe4 {1-0 (28) Gruenfeld,Y (2535)-Har Zvi,R (2505) Biel 1993}) 11... Be7 {[%emt 0:22:09]} (11... h6 $142 12. Rb4 Ng8) 12. Rb4 $1 {[%emt 0:10:20][%cal Ob4b7]} Nfd7 $2 {[%emt 0:06:17] [#]} (12... Ra7 {keeps fighting.} 13. Be3 a5) 13. Qg4 $2 {[%emt 0:17:04]} (13. Rxb7 $1 $18 {[%mdl 512]} Qxb7 14. Nf5) 13... h5 $16 {[%emt 0:15:55] [#]} 14. Qe2 {[%emt 0:01:27] &Bianco is much more active.} (14. Qxg7 $6 Bf6 15. Nf5 Bxg7 $11) (14. Qd1 $1 $16) 14... Nc5 {[%emt 0:03:24] [#]} ({Better is} 14... Nc6 $14 15. Nxc6 Bxc6) 15. Nd5 $1 $18 {[%emt 0:02:17][%mdl 512]} Nbd7 {[%emt 0:02:12]} 16. Nxe7 {[%emt 0:07:25]} Kxe7 {[%emt 0:00:05]} 17. e5 $36 {[%emt 0:14:47][%mdl 2048] White is on the roll.} d5 $2 {[%emt 0:00:53] A mistake that costs the game.} (17... Nxe5 $16 18. Bg5+ Kf8) 18. Bg5+ {[%emt 0:00:29]} Kf8 {[%emt 0:00:32]} 19. c4 {[%emt 0:00:18]} a5 {[%emt 0:01:09]} 20. Rb5 {[%emt 0:01:53]} Ne4 {[%emt 0:01:03]} 21. Bf4 {[%emt 0:08:50]} (21. Bxe4 dxe4 22. Ra1 Kg8 $16) 21... Ba6 {[%emt 0:00:44]} 22. cxd5 {[%emt 0:05:20]} exd5 {[%emt 0:00:40]} 23. e6 {[%emt 0:00:21]} (23. Rc1 Qe8 24. Qd1 Nxe5 25. Rxa5 Nxf2 26. Kxf2 Nd3+ 27. Kg1 Nxc1 28. Qxc1 Bb7 $18) 23... Ndf6 {[%emt 0:00:51]} 24. f3 {[%emt 0:01:06]} ({Don't do} 24. Bxe4 Nxe4 25. f3 Bxb5 26. Qxb5 (26. e7+ Kg8 $16) 26... Nf6 $18) 24... Bxb5 {[%emt 0:01:52]} 25. Qxb5 {[%emt 0:00:27]} ({Not} 25. e7+ Kg8 26. Qxb5 Qc5 $18) 25... Qc5 {[%emt 0:01:30]} 26. Qxc5+ {[%emt 0:02:04][%mdl 64] Remove Defender, Deflection} Nxc5 {[%emt 0:00:01]} 27. Bd6+ {[%emt 0:00:10]} Kg8 {[%emt 0:00:07]} 28. Bxc5 {[%emt 0:00:15]} fxe6 {[%emt 0:00:02]} 29. Rxe6 {[%emt 0:00:42]} Rc8 {[%emt 0:00:28]} 30. Ba3 {[%emt 0:01:41]} Kh7 {[%emt 0:01:15]} 31. Bf1 {[%emt 0:00:23] And now Bd3+ would win.} Rc1 {[%emt 0:00:29]} 32. Kf2 {[%emt 0:00:09] aiming for Bd3+.} Rd1 {[%emt 0:00:55] Against Bd3+} 33. Nc6 {[%emt 0:01:33]} Rc8 {[%emt 0:01:21]} 34. Be2 {[%emt 0:00:44]} Rh1 {[%emt 0:00:16]} 35. Kg2 {[%emt 0:02:14]} Rc1 {[%emt 0:00:16]} 36. Bd3+ {[%emt 0:00:07]} Kh8 {[%emt 0:00:33]} 37. Ne7 {[%emt 0:03:01]} Rb8 {[%emt 0:00:06]} 38. Re5 {[%emt 0:00:31]} Rd1 {[%emt 0:01:05]} 39. Bg6 {[%emt 0:00:17]} Rd2+ {[%emt 0:00:20]} 40. Kh3 {[%emt 0:00:03]} h4 {[%emt 0:00:49]} 41. gxh4 {[%emt 0:36:05]} Rb3 {[%emt 0:01:12][%cal Rb3f3]} 42. Kg3 {[%emt 0:00:00]} a4 {[%emt 0:01:51]} (42... Rb6 $142 43. Bf7 Rd1 44. Nxd5 Rb5) 43. Re6 {[%emt 0:00:00] White is clearly winning.} Rd4 {[%emt 0:02:28]} 44. Kf2 {[%emt 0:00:00]} Rf4 {[%emt 0:09:54] [#]} 45. Nxd5 $1 {[%emt 0:00:00]} Rbxf3+ {[%emt 0:00:57]} 46. Ke2 {[%emt 0:00:00]} Rf2+ {[%emt 0:01:48]} 47. Kd3 {[%emt 0:00:00]} R2f3+ {[%emt 0:11:43]} 48. Ne3 {[%emt 0:00:00]} Rxh4 {[%emt 0:00:11]} 49. Ra6 {[%emt 0:01:03]} Rhh3 {[%emt 0:00:48]} 50. Ra8+ {[%emt 0:00:21]} Ng8 {[%emt 0:00:02]} 51. Bc5 {[%emt 0:00:15]} Rxh2 {[%emt 0:02:40]} 52. Be4 {[%emt 0:00:28] A strong pair of Bishops.} Rg3 {[%emt 0:01:37]} 53. Bd6 {[%emt 0:01:25] Weighted Error Value: White=0.27 (precise) /Black=0.52} 1-0

[Event "Uruguayan Championship 2022"]
[Site "Montevideo"]
[Date "2022.04.14"]
[Round "7.2"]
[White "Lopez Azambuja, Nicolas"]
[Black "Palacio, Enzo"]
[Result "1-0"]
[ECO "E97"]
[WhiteElo "2318"]
[BlackElo "1896"]
[Annotator "TA"]
[PlyCount "57"]
[EventDate "2022.04.08"]
[EventType "tourn"]
[EventCountry "URU"]
[SourceTitle "playchess.com"]
[Source "ChessBase"]
[SourceQuality "1"]
[TimeControl "40/5400+30:1800+30"]

{[%evp 19,57,43,46,27,49,48,80,78,96,131,119,125,145,134,131,124,169,149,235,235,258,252,368,367,364,359,328,311,333,285,294,275,585,576,563,574,1222,1155,29972,2641]} 1. d4 {[%emt 0:00:12]} Nf6 {[%emt 0:00:04]} 2. c4 {[%emt 0:00:13]} g6 {[%emt 0:00:06]} 3. Nc3 {[%emt 0:00:05]} Bg7 {[%emt 0:00:04]} 4. e4 {[%emt 0:00:08]} d6 {[%emt 0:00:04]} 5. Nf3 {[%emt 0:00:08]} O-O {[%emt 0:00:17]} 6. Be2 {[%emt 0:00:10]} e5 {[%emt 0:00:11]} 7. O-O {[%emt 0:00:16]} Nc6 {[%emt 0:01:10]} 8. d5 {[%emt 0:00:24]} Ne7 {[%emt 0:00:03]} 9. b4 {[%emt 0:00:10]} Nh5 {[%emt 0:00:42]} 10. Re1 {[%emt 0:00:29]} f5 {[%emt 0:02:42]} 11. a4 {[%emt 0:00:53] E97: King's Indian: Classical Main Line (6...e5 7 0-0 Nc6): 8 Be3 and 8 d5 Ne7, not 9 Ne1.} Nf4 {[%emt 0:14:34]} 12. Bf1 {[%emt 0:00:39]} h6 {[%emt 0:08:27]} 13. Bxf4 {[%emt 0:02:16] White is better.} exf4 {[%emt 0:00:08]} 14. e5 {[%emt 0:00:04]} g5 {[%emt 0:07:25]} 15. Rc1 {[%emt 0:01:33] [#] &Bianco is more active.} Ng6 $146 {[%emt 0:07:49][%cal Rd6e5] [#]} ({Predecessor:} 15... g4 16. exd6 cxd6 17. Nd4 Be5 18. c5 a6 19. Ne6 Bxe6 20. dxe6 g3 21. h3 gxf2+ 22. Kxf2 {1-0 (42) Hetzer,V (2137)-Kiefer,D (2239) Germany 2004}) 16. exd6 {[%emt 0:03:33]} cxd6 {[%emt 0:00:06]} 17. c5 {[%emt 0:04:47]} a6 {[%emt 0:12:10]} 18. Nd4 {[%emt 0:12:05]} Be5 {[%emt 0:15:25] [#]} (18... Rb8 $16 19. c6 f3 20. Nxf3 (20. gxf3 Be5 $16) 20... Qb6) 19. Ne6 $1 $18 {[%emt 0:07:25]} Bxe6 {[%emt 0:06:27]} 20. dxe6 {[%emt 0:00:02]} Ne7 {[%emt 0:06:57]} (20... Bxc3 $142 21. Rxc3 d5) 21. Nd5 {[%emt 0:07:15]} Nxd5 {[%emt 0:02:45]} 22. Qxd5 {[%emt 0:00:07] Hoping for e7+.} Qe7 {[%emt 0:00:10]} 23. Red1 {[%emt 0:05:44][%cal Rc5d6]} Rfd8 {[%emt 0:01:09]} 24. c6 {[%emt 0:03:56]} bxc6 {[%emt 0:01:21]} 25. Rxc6 {[%emt 0:01:04] Black must now prevent Rdc1.} a5 $2 {[%emt 0:00:12]} (25... Re8 {is a better chance.} 26. Rxa6 Rxa6 27. Bxa6 Kh8) 26. Rdc1 {[%emt 0:00:56] Rc7 is the strong threat.} Re8 {[%emt 0:03:47]} 27. Rc7 {[%emt 0:03:03]} Qf6 {[%emt 0:03:29]} 28. e7+ {[%emt 0:05:25]} Kg7 {[%emt 0:00:45] [#]} 29. Qxa8 $1 {[%emt 0:00:25][%mdl 512] White took control after the opening.  Weighted Error Value: White=0.03 (flawless) /Black=0.79} 1-0

[Event "Uruguayan Championship 2022"]
[Site "Montevideo"]
[Date "2022.04.14"]
[Round "7.3"]
[White "Roselli Mailhe, Bernardo"]
[Black "Granara Barreto, Sebastian"]
[Result "1-0"]
[ECO "A48"]
[WhiteElo "2426"]
[BlackElo "2131"]
[Annotator "TA"]
[PlyCount "127"]
[EventDate "2022.04.08"]
[EventType "tourn"]
[EventCountry "URU"]
[SourceTitle "playchess.com"]
[Source "ChessBase"]
[SourceQuality "1"]
[TimeControl "40/5400+30:1800+30"]

{[%evp 17,127,-14,-18,-21,-14,-20,9,-29,-22,-15,-9,-10,-15,-12,6,5,5,6,22,21,27,29,22,14,16,10,8,0,0,0,0,0,4,3,14,0,0,0,8,0,7,0,2,0,17,17,29,36,50,25,25,32,61,35,97,88,83,96,93,72,72,0,0,0,0,0,0,3,243,163,131,159,235,219,271,247,324,294,323,321,296,289,327,327,317,308,328,330,329,171,321,311,328,279,495,459,440,421,870,862,820,820,758,733,1672,1600,1600,1600,1525,1387,984,546]} 1. d4 {[%emt 0:00:15]} Nf6 {[%emt 0:00:10]} 2. Nf3 {[%emt 0:00:40]} g6 {[%emt 0:00:14]} 3. Bg5 {[%emt 0:03:24]} Bg7 {[%emt 0:00:08]} 4. Nbd2 {[%emt 0:00:57]} O-O {[%emt 0:00:27]} 5. c3 {[%emt 0:00:20]} d5 {[%emt 0:01:17]} 6. e3 {[%emt 0:00:59]} Nbd7 {[%emt 0:01:01]} 7. Be2 {[%emt 0:03:56]} Re8 {[%emt 0:00:59]} 8. O-O {[%emt 0:04:46]} e5 {[%emt 0:00:40]} 9. dxe5 {[%emt 0:01:06]} Nxe5 {[%emt 0:00:10]} 10. h3 {[%emt 0:06:11] D03: 1 d4 d5 2 Nf3 Nf6 3 Bg5, including Torre Attack with early ...d5.} c6 {[%emt 0:02:46]} 11. Qb3 {[%emt 0:11:19]} Qb6 {[%emt 0:03:27] [#]} 12. Qxb6 $146 {[%emt 0:05:37] The position is equal.} ({Predecessor:} 12. Nxe5 Rxe5 13. Bf4 Re8 14. a4 {½-½ (14) Ballmann,M (2401)-Kaenel,H (2395) Baden 1999}) 12... axb6 {[%emt 0:00:54]} 13. Nxe5 {[%emt 0:00:23]} Rxe5 {[%emt 0:00:08]} 14. Bf4 {[%emt 0:00:02]} Re8 {[%emt 0:00:25]} 15. a4 {[%emt 0:00:26]} Ne4 {[%emt 0:05:54]} 16. Nxe4 {[%emt 0:05:31]} Rxe4 {[%emt 0:02:05]} 17. Bd1 $1 {[%emt 0:00:06]} Re8 {[%emt 0:09:03]} 18. Bc2 {[%emt 0:06:05]} Be5 {[%emt 0:07:55] Prevents Bc7.} 19. Bxe5 {[%emt 0:00:13]} Rxe5 {[%emt 0:00:04]} 20. Rfe1 {[%emt 0:00:22]} Kg7 {[%emt 0:12:21]} 21. f3 {[%emt 0:00:42]} h5 {[%emt 0:02:21]} 22. h4 {[%emt 0:00:13]} Bf5 {[%emt 0:04:17]} 23. Bxf5 {[%emt 0:05:15]} Rxf5 $11 {[%emt 0:02:46][%mdl 4096] Endgame KRR-KRR} 24. Kf2 {[%emt 0:00:59]} Re5 {[%emt 0:01:25]} 25. Ra3 {[%emt 0:09:47]} Re7 {[%emt 0:04:33]} 26. Rc1 {[%emt 0:03:33]} Rae8 {[%emt 0:09:23]} 27. Re1 {[%emt 0:02:31]} Ra8 {[%emt 0:00:12]} 28. Re2 {[%emt 0:01:33]} Kf6 {[%emt 0:02:52]} 29. Rc2 {[%emt 0:00:26]} Rd7 {[%emt 0:04:05]} 30. Ke2 {[%emt 0:02:23]} c5 {[%emt 0:08:15]} 31. b4 {[%emt 0:07:31]} c4 {[%emt 0:02:05]} 32. Ra1 {[%emt 0:06:08]} Rd6 {[%emt 0:03:43]} 33. b5 {[%emt 0:02:54]} Re6 {[%emt 0:02:01]} 34. Kf2 {[%emt 0:01:16]} Rae8 {[%emt 0:00:28]} 35. Rd1 {[%emt 0:02:13]} Ra8 {[%emt 0:02:57]} ({Black should try} 35... Rxe3 $14 36. Rxd5 Rd3 37. Rxd3 cxd3) 36. Rxd5 $16 {[%emt 0:02:25]} Rxa4 {[%emt 0:00:04]} 37. e4 {[%emt 0:00:08]} Ra5 {[%emt 0:01:11]} 38. Ke3 {[%emt 0:02:59]} Re5 {[%emt 0:01:46]} 39. Rxe5 {[%emt 0:00:14]} (39. Rd7 $16) 39... Kxe5 {[%emt 0:00:04] KR-KR} 40. Rb2 {[%emt 0:00:40] next f4+ is good for White.} Ra3 {[%emt 0:00:55]} 41. f4+ {[%emt 0:30:32]} Ke6 {[%emt 0:30:47]} 42. Kd4 {[%emt 0:03:28] Strongly threatening Rf2.} f6 $2 {[%emt 0:00:00] This costs Black the game.} (42... Rb3 $1 $11 43. Ra2 Rxb5) 43. Kxc4 {[%emt 0:00:00]} Ra4+ {[%emt 0:00:00]} 44. Kd3 {[%emt 0:00:00]} Ra1 {[%emt 0:00:00] [#]} (44... Ra5 $16 45. Kd4 Ra4+ 46. Kd3 Ra5) 45. Re2 $1 $18 {[%emt 0:00:00]} Ra4 {[%emt 0:00:00]} 46. g3 {[%emt 0:00:00]} Ra5 {[%emt 0:00:00] [#]} 47. Kc4 {[%emt 0:00:00]} Ra4+ {[%emt 0:00:00]} 48. Kb3 {[%emt 0:00:00]} Ra5 {[%emt 0:00:00]} 49. Kb4 {[%emt 0:00:00]} Ra1 {[%emt 0:00:00]} 50. e5 {[%emt 0:00:00]} Rb1+ {[%emt 0:04:03]} 51. Kc4 {[%emt 0:00:00]} Rd1 {[%emt 0:00:04]} 52. exf6+ {[%emt 0:00:00]} Kxf6 {[%emt 0:00:03]} 53. Re5 {[%emt 0:00:00]} (53. Re8 $142 {Rf8+ is the strong threat.} Rd7 54. Re4) 53... Rd7 {[%emt 0:03:38]} (53... Rg1 $142) 54. Rg5 {[%emt 0:00:00]} Rc7+ {[%emt 0:01:21]} 55. Kb4 {[%emt 0:00:00]} Re7 $2 {[%emt 0:00:06]} (55... Rd7 {might work better.} 56. c4 Rd6) 56. Rd5 {[%emt 0:01:05] And now Rd6+ would win. White is clearly winning.} Re4+ {[%emt 0:00:53]} 57. c4 {[%emt 0:01:16]} Ke6 {[%emt 0:01:09] Prevents Rd6+.} (57... Ke7 $142 58. f5 Rg4 59. fxg6 Rxg3 60. Rxh5 Rxg6 61. Rh7+ Kd8) 58. Rd8 {[%emt 0:02:51]} Ke7 {[%emt 0:00:53]} 59. Rb8 {[%emt 0:00:13]} Re6 {[%emt 0:00:06]} 60. Rxb7+ {[%emt 0:00:08]} Kf6 {[%emt 0:00:05]} 61. Rd7 {[%emt 0:00:28]} Kf5 {[%emt 0:00:43]} 62. Rd5+ {[%emt 0:00:27]} Kg4 {[%emt 0:00:07]} 63. Rg5+ {[%emt 0:00:05]} Kf3 {[%emt 0:00:04]} 64. f5 {[%emt 0:00:56] Weighted Error Value: White=0.10 (very precise) /Black=0.32} 1-0